fUST/lending_fUST_20250101
["ID","MTS","AMOUNT","RATE_DAILY","PERIOD"]
[347310891,1735679456900,-340.834427,0.00021369,2]
[347310892,1735679456910,-340.834427,0.00021369,2]
[347310893,1735679456919,-500.0,0.00021369,3]
[347310894,1735679456928,-750.06,0.00021369,3]
[347310895,1735679456938,-1089.62,0.00021369,3]
[347310896,1735679456947,-557.74,0.00021369,3]
[347310897,1735679456956,-500.0,0.00021369,3]
[347310898,1735679456971,-500.0,0.00021369,3]
[347310899,1735679456980,-1061.03,0.00021369,3]
[347310900,1735679456990,-500.0,0.00021369,3]
[347310901,1735679457000,-231.819887,0.00021369,2]
[347310902,1735679457009,-735.12,0.00021369,3]
[347310903,1735679457019,-231.819887,0.00021369,2]
[347310904,1735679457028,-561.1,0.00021369,3]
[347310905,1735679457038,-230.623201,0.00021369,2]
[347310906,1735679457047,-500.0,0.00021369,3]
[347310907,1735679457058,-230.623201,0.00021369,2]
[347310908,1735679457067,-500.0,0.00021369,3]
[347310909,1735679457076,-723.8,0.00021369,3]
[347310910,1735679457086,-151.0,0.00021369,2]
[347310911,1735679457095,-264.728668,0.00021369,2]
[347310912,1735679457104,-1078.54,0.00021369,3]
[347310913,1735679457114,-500.0,0.00021369,3]
[347310914,1735679457123,-3291.31,0.00021369,3]
[347310915,1735679457132,-614.34,0.00021369,3]
[347310916,1735679457143,-264.728668,0.00021369,2]
[347310917,1735679457152,-920.06,0.00021369,3]
[347310918,1735679457161,-371.616481,0.00021369,2]
[347310919,1735679457171,-596.25,0.00021369,3]
[347310920,1735679457180,-371.61648,0.00021369,2]
[347310921,1735679457189,-2095.76,0.00021369,3]
[347310922,1735679457199,-826.6,0.00021369,3]
[347310923,1735679457208,-500.0,0.00021369,3]
[347310924,1735679457220,-523.411285,0.00021369,2]
[347310925,1735679457229,-500.0,0.00021369,3]
[347310926,1735679457239,-833.34,0.00021369,3]
[347310927,1735679457248,-500.0,0.00021369,3]
[347310928,1735679457257,-1558.72,0.00021369,3]
[347310929,1735679457266,-523.411294,0.00021369,2]
[347310930,1735679457276,-2078.82,0.00021369,3]
[347310931,1735679457285,-500.0,0.00021369,3]
[347310932,1735679457295,-275.501114,0.00021369,2]
[347310933,1735679457305,-275.50112,0.00021369,2]
[347310934,1735679457314,-500.0,0.00021369,3]
[347310935,1735679457324,-1419.68,0.00021369,3]
[347310936,1735679457333,-169.592575,0.00021369,2]
[347310937,1735679457342,-169.59258,0.00021369,2]
[347310938,1735679457351,-500.0,0.00021369,3]
[347310939,1735679457361,-2921.96,0.00021369,3]
[347310940,1735679457370,-576.27513139,0.00021369,3]
[347310941,1735679457379,-799.98,0.00021369,3]
[347310942,1735679457388,-191.44974,0.00021369,2]
[347310943,1735679457397,-191.449749,0.00021369,2]
[347310944,1735679457407,-689.76,0.00021369,3]
[347310945,1735679457416,-861.64,0.00021369,3]
[347310946,1735679457426,-600.4,0.00021369,3]
[347310947,1735679457435,-731.78,0.00021369,3]
[347310948,1735679457444,-751.77,0.00021369,3]
[347310949,1735679457529,-500.0,0.00021369,3]
[347310950,1735679457539,-756.61,0.00021369,3]
[347310951,1735679457548,-730.16,0.00021369,3]
[347310952,1735679457557,-2423.86,0.00021369,3]
[347310953,1735679457566,-1420.74,0.00021369,3]
[347310954,1735679457576,-39820.71,0.00021369,3]
[347310955,1735679457585,-500.0,0.00021369,3]
[347310956,1735679457595,-1014.13,0.00021369,3]
[347310957,1735679457604,-500.0,0.00021369,3]
[347310958,1735679457613,-1726.52,0.00021369,3]
[347310959,1735679457623,-6262.73,0.00021369,3]
[347310960,1735679457632,-1078.31,0.00021369,3]
[347310961,1735679457641,-1324.32,0.00021369,3]
[347310962,1735679457651,-1826.49,0.00021369,3]
[347310963,1735679457661,-514.33879047,0.00021369,3]
[347310964,1735679457670,-885.37,0.00021369,3]
[347310965,1735679457680,-961.81,0.00021369,3]
[347310966,1735679457689,-754.45,0.00021369,3]
[347310967,1735679457698,-1477.71,0.00021369,3]
[347310968,1735679457708,-915.66,0.00021369,3]
[347310969,1735679457721,-500.0,0.00021369,3]
[347310970,1735679457733,-687.313315,0.00021369,2]
[347310971,1735679457742,-500.0,0.00021369,3]
[347310972,1735679457751,-500.0,0.00021369,3]
[347310973,1735679457760,-687.313316,0.00021369,2]
[347310974,1735679457770,-500.0,0.00021369,3]
[347310975,1735679457779,-830.37,0.00021369,3]
[347310976,1735679457789,-5516.38,0.00021369,3]
[347310977,1735679457798,-1182.84,0.00021369,3]
[347310978,1735679457808,-500.0,0.00021369,3]
[347310979,1735679457817,-500.0,0.00021369,3]
[347310980,1735679457827,-500.0,0.00021369,3]
[347310981,1735679457836,-500.0,0.00021369,3]
[347310982,1735679457846,-500.0,0.00021369,3]
[347310983,1735679457855,-1548.35,0.00021369,3]
[347310984,1735679457865,-8771.98,0.00021369,3]
[347310985,1735679457874,-503.42,0.00021369,3]
[347310986,1735679457883,-1016.18,0.00021369,3]
[347310987,1735679457896,-956.62,0.00021369,3]
[347310988,1735679457906,-845.91,0.00021369,3]
[347310989,1735679457915,-500.0,0.00021369,3]
[347310990,1735679457925,-727.17,0.00021369,3]
[347310991,1735679457935,-500.0,0.00021369,3]
[347310992,1735679457944,-571.77,0.00021369,3]
[347310993,1735679457953,-2896.96,0.00021369,3]
[347310994,1735679457964,-1237.87,0.00021369,3]
[347310995,1735679457975,-565.9,0.00021369,3]
[347310996,1735679457985,-4261.59,0.00021369,3]
[347310997,1735679457995,-500.0,0.00021369,3]
[347310998,1735679458005,-1582.67,0.00021369,3]
[347310999,1735679458014,-4663.45553622,0.00021471,2]
[347311000,1735679458023,-276.99246,0.00021479,2]
[347311001,1735679458032,-601.0,0.000215,2]
[347311002,1735679458042,-601.0,0.000215,2]
[347311003,1735679458051,-601.0,0.000215,2]
[347311004,1735679458061,-601.0,0.000215,2]
[347311005,1735679458070,-601.0,0.000215,2]
[347311006,1735679458080,-601.0,0.000215,2]
[347311007,1735679458089,-601.0,0.000215,2]
[347311008,1735679458099,-601.0,0.000215,2]
[347311009,1735679458108,-601.0,0.000215,2]
[347311010,1735679458117,-601.0,0.000215,2]
[347311011,1735679458127,-2221.15,0.000215,2]
[347311012,1735679458136,-600.0,0.00021508,2]
[347311013,1735679458145,-2762.9319105,0.0002152,5]
[347311014,1735679458154,-344.8621639,0.00021532,2]
[347311015,1735679458164,-500.0,0.00021565,2]
[347311016,1735679458173,-151.0,0.00021565,2]
[347311017,1735679458182,-151.008,0.00021565,2]
[347311018,1735679458191,-1200.0,0.00021565,2]
[347311019,1735679458200,-151.0,0.00021592,7]
[347311020,1735679458209,-464.42447581,0.00021624,2]
[347311021,1735679458222,-587.0,0.00021625,2]
[347311022,1735679458231,-674.34,0.00021643,3]
[347311023,1735679458240,-151.0,0.00021643,2]
[347311024,1735679458249,-320.98310921,0.00021643,3]
[347311025,1735679458259,-500.0,0.00021643,3]
[347311026,1735679458268,-151.0,0.00021643,2]
[347311027,1735679458277,-500.0,0.00021643,3]
[347311028,1735679458286,-151.0,0.00021643,2]
[347311029,1735679458295,-555.25,0.00021643,3]
[347311030,1735679458305,-7797.53,0.00021643,3]
[347311031,1735679458314,-500.0,0.00021643,3]
[347311032,1735679458323,-853.75,0.00021643,3]
[347311033,1735679458333,-500.0,0.00021643,3]
[347311034,1735679458342,-1271.48,0.00021643,3]
[347311035,1735679458351,-1470.73,0.00021643,3]
[347311036,1735679458361,-500.0,0.00021643,3]
[347311037,1735679458370,-532.45,0.00021643,3]
[347311038,1735679458379,-500.0,0.00021643,3]
[347311039,1735679458387,-500.0,0.00021643,3]
[347311040,1735679458398,-500.0,0.00021643,3]
[347311041,1735679458407,-855.05,0.00021643,3]
[347311042,1735679458417,-500.0,0.00021643,3]
[347311043,1735679458425,-456.331573,0.00021643,2]
[347311044,1735679458434,-500.0,0.00021643,3]
[347311045,1735679458443,-683.45,0.00021643,3]
[347311046,1735679458453,-500.0,0.00021643,3]
[347311047,1735679458464,-456.331573,0.00021643,2]
[347311048,1735679458473,-772.63,0.00021643,3]
[347311049,1735679458483,-500.0,0.00021643,3]
[347311050,1735679458491,-719.37,0.00021643,3]
[347311051,1735679458501,-500.0,0.00021643,3]
[347311052,1735679458510,-500.0,0.00021643,3]
[347311053,1735679458519,-500.0,0.00021643,3]
[347311054,1735679458528,-500.0,0.00021643,3]
[347311055,1735679458537,-500.0,0.00021643,3]
[347311056,1735679458547,-595.35,0.00021643,3]
[347311057,1735679458556,-500.0,0.00021643,3]
[347311058,1735679458566,-500.0,0.00021643,3]
[347311059,1735679458575,-500.0,0.00021643,3]
[347311060,1735679458584,-313.136126,0.00021643,2]
[347311061,1735679458594,-500.0,0.00021643,2]
[347311062,1735679458603,-313.136126,0.00021643,2]
[347311063,1735679458612,-5062.37,0.00021643,3]
[347311064,1735679458622,-500.0,0.00021643,3]
[347311065,1735679458631,-623.88,0.00021643,3]
[347311066,1735679458641,-500.0,0.00021643,3]
[347311067,1735679458651,-906.38,0.00021643,3]
[347311068,1735679458661,-221.957199,0.00021643,2]
[347311069,1735679458670,-624.44,0.00021643,3]
[347311070,1735679458679,-597.87,0.00021643,3]
[347311071,1735679458688,-340.834427,0.00021643,2]
[347311072,1735679458698,-340.834428,0.00021643,2]
[347311073,1735679458707,-422.60316214,0.00021643,3]
[347311074,1735679458718,-750.06,0.00021643,3]
[347311075,1735679458727,-1089.62,0.00021643,3]
[347311076,1735679458736,-557.74,0.00021643,3]
[347311077,1735679458746,-500.0,0.00021643,3]
[347311078,1735679458755,-500.0,0.00021643,3]
[347311079,1735679458764,-1061.03,0.00021643,3]
[347311080,1735679458844,-500.0,0.00021643,3]
[347311081,1735679458853,-231.819887,0.00021643,2]
[347311082,1735679458862,-735.12,0.00021643,3]
[347311083,1735679458872,-231.819887,0.00021643,2]
[347311084,1735679458881,-561.1,0.00021643,3]
[347311085,1735679458890,-230.623201,0.00021643,2]
[347311086,1735679458903,-500.0,0.00021643,3]
[347311087,1735679458911,-230.623201,0.00021643,2]
[347311088,1735679458920,-500.0,0.00021643,3]
[347311089,1735679458930,-723.8,0.00021643,3]
[347311090,1735679458939,-499.0,0.00021643,4]
[347311091,1735679458948,-151.0,0.00021643,2]
[347311092,1735679458957,-264.728668,0.00021643,2]
[347311093,1735679458968,-1078.54,0.00021643,3]
[347311094,1735679458976,-500.0,0.00021643,3]
[347311095,1735679458986,-3291.31,0.00021643,3]
[347311096,1735679458995,-614.34,0.00021643,3]
[347311097,1735679459004,-264.728668,0.00021643,2]
[347311098,1735679459013,-920.06,0.00021643,3]
[347311099,1735679459021,-596.25,0.00021643,3]
[347311100,1735679459030,-2095.76,0.00021643,3]
[347311101,1735679459039,-826.6,0.00021643,3]
[347311102,1735679459049,-500.0,0.00021643,3]
[347311103,1735679459058,-500.0,0.00021643,3]
[347311104,1735679459067,-833.34,0.00021643,3]
[347311105,1735679459076,-500.0,0.00021643,3]
[347311106,1735679459085,-1558.72,0.00021643,3]
[347311107,1735679459094,-2078.82,0.00021643,3]
[347311108,1735679459103,-500.0,0.00021643,3]
[347311109,1735679459112,-500.0,0.00021643,3]
[347311110,1735679459121,-1419.68,0.00021643,3]
[347311111,1735679459131,-500.0,0.00021643,3]
[347311112,1735679459140,-2921.96,0.00021643,3]
[347311113,1735679459150,-799.98,0.00021643,3]
[347311114,1735679459159,-689.76,0.00021643,3]
[347311115,1735679459168,-861.64,0.00021643,3]
[347311116,1735679459177,-600.4,0.00021643,3]
[347311117,1735679459187,-731.78,0.00021643,3]
[347311118,1735679459197,-751.77,0.00021643,3]
[347311119,1735679459207,-500.0,0.00021643,3]
[347311120,1735679459217,-756.61,0.00021643,3]
[347311121,1735679459226,-730.16,0.00021643,3]
[347311122,1735679459235,-2423.86,0.00021643,3]
[347311123,1735679459245,-1420.74,0.00021643,3]
[347311124,1735679459255,-39820.71,0.00021643,3]
[347311125,1735679459264,-500.0,0.00021643,3]
[347311126,1735679459273,-1014.13,0.00021643,3]
[347311127,1735679459282,-500.0,0.00021643,3]
[347311128,1735679459291,-1726.52,0.00021643,3]
[347311129,1735679459300,-1078.31,0.00021643,3]
[347311130,1735679459309,-1324.32,0.00021643,3]
[347311131,1735679459319,-6262.73,0.00021643,3]
[347311132,1735679459328,-1826.49,0.00021643,3]
[347311133,1735679459337,-885.37,0.00021643,3]
[347311134,1735679459346,-961.81,0.00021643,3]
[347311135,1735679459356,-1477.71,0.00021643,3]
[347311136,1735679459365,-754.45,0.00021643,3]
[347311137,1735679459374,-915.66,0.00021643,3]
[347311138,1735679459383,-500.0,0.00021643,3]
[347311139,1735679459393,-437.85549526,0.00021643,3]
[347311140,1735679459411,-454.61516535,0.00021643,3]
[347311141,1735679459429,-500.0,0.00021643,3]
[347311142,1735679459446,-830.37,0.00021643,3]
[347311143,1735679459463,-5516.38,0.00021643,3]
[347311144,1735679459483,-1182.84,0.00021643,3]
[347311145,1735679459499,-500.0,0.00021643,3]
[347311146,1735679459516,-500.0,0.00021643,3]
[347311147,1735679459532,-500.0,0.00021643,3]
[347311148,1735679459545,-500.0,0.00021643,3]
[347311149,1735679459560,-500.0,0.00021643,3]
[347311150,1735679459576,-1548.35,0.00021643,3]
[347311151,1735679459595,-8771.98,0.00021643,3]
[347311152,1735679459609,-503.42,0.00021643,3]
[347311153,1735679459621,-1016.18,0.00021643,3]
[347311154,1735679459640,-956.62,0.00021643,3]
[347311155,1735679459653,-845.91,0.00021643,3]
[347311156,1735679459668,-500.0,0.00021643,3]
[347311157,1735679459680,-727.17,0.00021643,3]
[347311158,1735679459694,-500.0,0.00021643,3]
[347311159,1735679459708,-571.77,0.00021643,3]
[347311160,1735679459723,-2896.96,0.00021643,3]
[347311161,1735679459737,-1237.87,0.00021643,3]
[347311162,1735679459750,-565.9,0.00021643,3]
[347311163,1735679459763,-4261.59,0.00021643,3]
[347311164,1735679459776,-500.0,0.00021643,3]
[347311165,1735679459790,-1582.67,0.00021643,3]
[347311166,1735679459803,-4663.45553622,0.00021659,2]
[347311167,1735679459816,-276.99246,0.00021671,2]
[347311168,1735679459830,-344.8621639,0.00021708,2]
[347311169,1735679459843,-151.0,0.00021721,2]
[347311170,1735679459857,-151.0,0.00021721,2]
[347311171,1735679459870,-1731.62060759,0.00021721,2]
[347311172,1735679459884,-2663.03385505,0.00021731,2]
[347311173,1735679459900,-600.0,0.00021732,2]
[347311174,1735679459914,-313.136126,0.00021765,2]
[347311175,1735679459928,-313.136126,0.00021765,2]
[347311176,1735679459943,-231.819887,0.00021765,2]
[347311177,1735679459957,-231.819887,0.00021765,2]
[347311178,1735679459972,-5000.0,0.00021765,2]
[347311179,1735679459986,-5000.0,0.00021765,2]
[347311180,1735679459999,-5000.0,0.00021765,2]
[347311181,1735679460014,-5000.0,0.00021765,2]
[347311182,1735679460028,-5000.0,0.00021765,2]
[347311183,1735679460042,-4663.45553622,0.00021846,2]
[347311184,1735679460055,-276.99246,0.00021863,2]
[347311185,1735679460069,-344.8621639,0.00021883,2]
[347311186,1735679460083,-151.0,0.00021886,7]
[347311187,1735679460097,-756.59218773,0.00021909,8]
[347311188,1735679460110,-674.34,0.00021917,3]
[347311189,1735679460125,-151.0,0.00021917,2]
[347311190,1735679460139,-151.0,0.00021917,2]
[347311191,1735679460153,-500.0,0.00021917,3]
[347311192,1735679460167,-151.0,0.00021917,2]
[347311193,1735679460182,-500.0,0.00021917,3]
[347311194,1735679460195,-151.0,0.00021917,2]
[347311195,1735679460205,-411.30553655,0.00021917,2]
[347311196,1735679460216,-555.25,0.00021917,3]
[347311197,1735679460225,-7797.53,0.00021917,3]
[347311198,1735679460235,-223.11128143,0.00021917,3]
[347311199,1735679460244,-853.75,0.00021917,3]
[347311200,1735679460391,-500.0,0.00021917,3]
[347311201,1735679460401,-1271.48,0.00021917,3]
[347311202,1735679460410,-1470.73,0.00021917,3]
[347311203,1735679460420,-500.0,0.00021917,3]
[347311204,1735679460429,-532.45,0.00021917,3]
[347311205,1735679460438,-500.0,0.00021917,3]
[347311206,1735679460448,-500.0,0.00021917,3]
[347311207,1735679460457,-500.0,0.00021917,3]
[347311208,1735679460469,-855.05,0.00021917,3]
[347311209,1735679460478,-500.0,0.00021917,3]
[347311210,1735679460487,-456.331573,0.00021917,2]
[347311211,1735679460496,-500.0,0.00021917,3]
[347311212,1735679460505,-683.45,0.00021917,3]
[347311213,1735679460514,-500.0,0.00021917,3]
[347311214,1735679460524,-456.331573,0.00021917,2]
[347311215,1735679460533,-772.63,0.00021917,3]
[347311216,1735679460543,-500.0,0.00021917,3]
[347311217,1735679460552,-719.37,0.00021917,3]
[347311218,1735679460561,-545.24773415,0.00021917,3]
[347311219,1735679460570,-500.0,0.00021917,3]
[347311220,1735679460580,-500.0,0.00021917,3]
[347311221,1735679460589,-500.0,0.00021917,3]
[347311222,1735679460598,-500.0,0.00021917,3]
[347311223,1735679460608,-595.35,0.00021917,3]
[347311224,1735679460617,-500.0,0.00021917,3]
[347311225,1735679460626,-500.0,0.00021917,3]
[347311226,1735679460637,-500.0,0.00021917,3]
[347311227,1735679460646,-313.136126,0.00021917,2]
[347311228,1735679460656,-500.0,0.00021917,2]
[347311229,1735679460665,-5062.37,0.00021917,3]
[347311230,1735679460674,-313.136132,0.00021917,2]
[347311231,1735679460683,-500.0,0.00021917,3]
[347311232,1735679460693,-623.88,0.00021917,3]
[347311233,1735679460702,-500.0,0.00021917,3]
[347311234,1735679460711,-906.38,0.00021917,3]
[347311235,1735679460722,-624.44,0.00021917,3]
[347311236,1735679460732,-597.87,0.00021917,3]
[347311237,1735679460741,-750.06,0.00021917,3]
[347311238,1735679460749,-1089.62,0.00021917,3]
[347311239,1735679460759,-557.74,0.00021917,3]
[347311240,1735679460767,-500.0,0.00021917,3]
[347311241,1735679460777,-500.0,0.00021917,3]
[347311242,1735679460786,-1000.0,0.00021917,5]
[347311243,1735679460796,-1000.0,0.00021917,5]
[347311244,1735679460805,-1000.0,0.00021917,5]
[347311245,1735679460814,-1000.0,0.00021917,5]
[347311246,1735679460823,-897.16489242,0.00021917,5]
[347311247,1735679460833,-1061.03,0.00021917,3]
[347311248,1735679460842,-500.0,0.00021917,3]
[347311249,1735679460852,-735.12,0.00021917,3]
[347311250,1735679460863,-231.819887,0.00021917,2]
[347311251,1735679460872,-231.819883,0.00021917,2]
[347311252,1735679460882,-561.1,0.00021917,3]
[347311253,1735679460893,-230.623201,0.00021917,2]
[347311254,1735679460903,-500.0,0.00021917,3]
[347311255,1735679460912,-230.623201,0.00021917,2]
[347311256,1735679460921,-500.0,0.00021917,3]
[347311257,1735679460931,-723.8,0.00021917,3]
[347311258,1735679460940,-264.728668,0.00021917,2]
[347311259,1735679460949,-500.0,0.00021917,3]
[347311260,1735679460959,-1078.54,0.00021917,3]
[347311261,1735679460970,-3291.31,0.00021917,3]
[347311262,1735679460980,-614.34,0.00021917,3]
[347311263,1735679460990,-264.728668,0.00021917,2]
[347311264,1735679461000,-920.06,0.00021917,3]
[347311265,1735679461009,-596.25,0.00021917,3]
[347311266,1735679461019,-2095.76,0.00021917,3]
[347311267,1735679461028,-826.6,0.00021917,3]
[347311268,1735679461038,-500.0,0.00021917,3]
[347311269,1735679461048,-500.0,0.00021917,3]
[347311270,1735679461057,-833.34,0.00021917,3]
[347311271,1735679461067,-248.66150273,0.00021917,3]
[347311272,1735679461077,-1558.72,0.00021917,3]
[347311273,1735679461086,-2078.82,0.00021917,3]
[347311274,1735679461095,-500.0,0.00021917,3]
[347311275,1735679461104,-500.0,0.00021917,3]
[347311276,1735679461114,-1419.68,0.00021917,3]
[347311277,1735679461123,-500.0,0.00021917,3]
[347311278,1735679461132,-2921.96,0.00021917,3]
[347311279,1735679461141,-799.98,0.00021917,3]
[347311280,1735679461150,-689.76,0.00021917,3]
[347311281,1735679461159,-861.64,0.00021917,3]
[347311282,1735679461168,-600.4,0.00021917,3]
[347311283,1735679461177,-731.78,0.00021917,3]
[347311284,1735679461186,-751.77,0.00021917,3]
[347311285,1735679461195,-500.0,0.00021917,3]
[347311286,1735679461204,-756.61,0.00021917,3]
[347311287,1735679461214,-730.16,0.00021917,3]
[347311288,1735679461222,-2423.86,0.00021917,3]
[347311289,1735679461231,-1420.74,0.00021917,3]
[347311290,1735679461241,-39820.71,0.00021917,3]
[347311291,1735679461250,-500.0,0.00021917,3]
[347311292,1735679461259,-1014.13,0.00021917,3]
[347311293,1735679461268,-500.0,0.00021917,3]
[347311294,1735679461276,-1726.52,0.00021917,3]
[347311295,1735679461285,-1078.31,0.00021917,3]
[347311296,1735679461294,-1324.32,0.00021917,3]
[347311297,1735679461303,-6262.73,0.00021917,3]
[347311298,1735679461312,-1826.49,0.00021917,3]
[347311299,1735679461321,-885.37,0.00021917,3]
[347311300,1735679461330,-961.81,0.00021917,3]
[347311301,1735679461339,-1477.71,0.00021917,3]
[347311302,1735679461348,-754.45,0.00021917,3]
[347311303,1735679461357,-915.66,0.00021917,3]
[347311304,1735679461366,-500.0,0.00021917,3]
[347311305,1735679461376,-500.0,0.00021917,3]
[347311306,1735679461385,-500.0,0.00021917,3]
[347311307,1735679461395,-500.0,0.00021917,3]
[347311308,1735679461405,-830.37,0.00021917,3]
[347311309,1735679461414,-302.27689825,0.00021917,3]
[347311310,1735679461424,-5516.38,0.00021917,3]
[347311311,1735679461434,-1182.84,0.00021917,3]
[347311312,1735679461444,-233.46483182,0.00021917,3]
[347311313,1735679461453,-500.0,0.00021917,3]
[347311314,1735679461464,-500.0,0.00021917,3]
[347311315,1735679461473,-500.0,0.00021917,3]
[347311316,1735679461483,-500.0,0.00021917,3]
[347311317,1735679461492,-1548.35,0.00021917,3]
[347311318,1735679461502,-8771.98,0.00021917,3]
[347311319,1735679461511,-503.42,0.00021917,3]
[347311320,1735679461521,-1016.18,0.00021917,3]
[347311321,1735679461530,-956.62,0.00021917,3]
[347311322,1735679461539,-845.91,0.00021917,3]
[347311323,1735679461548,-500.0,0.00021917,3]
[347311324,1735679461557,-727.17,0.00021917,3]
[347311325,1735679461567,-500.0,0.00021917,3]
[347311326,1735679461576,-571.77,0.00021917,3]
[347311327,1735679461585,-2896.96,0.00021917,3]
[347311328,1735679461595,-1237.87,0.00021917,3]
[347311329,1735679461605,-565.9,0.00021917,3]
[347311330,1735679461614,-4261.59,0.00021917,3]
[347311331,1735679461624,-500.0,0.00021917,3]
[347311332,1735679461634,-1582.67,0.00021917,3]
[347311333,1735679461643,-1282.9228758,0.00021918,7]
[347311334,1735679461653,-500.0,0.00021918,2]
[347311335,1735679461662,-150.18,0.00021918,2]
[347311336,1735679461672,-10315.65651831,0.00021933,2]
[347311337,1735679461681,-600.0,0.00021956,2]
[347311338,1735679461694,-456.331573,0.00021957,7]
[347311339,1735679461703,-456.331573,0.00021957,7]
[347311340,1735679461714,-230.623201,0.00021957,7]
[347311341,1735679461723,-230.623201,0.00021957,7]
[347311342,1735679461732,-150.0,0.00021973,2]
[347311343,1735679461742,-10000.0,0.00022,3]
[347311344,1735679461752,-10000.0,0.00022,3]
[347311345,1735679461761,-10000.0,0.00022,3]
[347311346,1735679461771,-10000.0,0.00022,3]
[347311347,1735679461781,-10000.0,0.00022,3]
[347311348,1735679461790,-10000.0,0.00022,3]
[347311349,1735679461799,-11841.46608862,0.00022,15]
[347311350,1735679461809,-34973.30233744,0.00022,2]
[347311351,1735679461818,-161.68866598,0.00022,10]
[347311352,1735679461827,-1000.0,0.00022,2]
[347311353,1735679461837,-904.17,0.00022,2]
[347311354,1735679461846,-1000.0,0.00022,22]
[347311355,1735679461855,-1000.0,0.00022,6]
[347311356,1735679461864,-10000.0,0.00022,3]
[347311357,1735679461873,-10000.0,0.00022,3]
[347311358,1735679461883,-151.0,0.00022,7]
[347311359,1735679461893,-151.0,0.00022,7]
[347311360,1735679461906,-158.77,0.00022,31]
[347311361,1735679461915,-158.77,0.00022,31]
[347311362,1735679461925,-158.77,0.00022,31]
[347311363,1735679461934,-158.77,0.00022,31]
[347311364,1735679461945,-158.77,0.00022,31]
[347311365,1735679461955,-158.77,0.00022,31]
[347311366,1735679461966,-264.728668,0.00022,7]
[347311367,1735679461978,-264.728658,0.00022,7]
[347311368,1735679461989,-2828.63663497,0.0002201,16]
[347311369,1735679461998,-151.0,0.0002201,7]
[347311370,1735679462008,-456.331573,0.0002201,7]
[347311371,1735679462016,-456.331566,0.0002201,7]
[347311372,1735679462026,-230.623201,0.0002201,7]
[347311373,1735679462035,-230.623194,0.0002201,7]
[347311374,1735679462044,-4663.45553622,0.00022034,2]
[347311375,1735679462053,-276.99246,0.00022055,2]
[347311376,1735679462063,-344.8621639,0.00022058,2]
[347311377,1735679462072,-2000.0,0.000221,2]
[347311378,1735679462081,-2000.0,0.000221,2]
[347311379,1735679462091,-5541.76,0.000221,14]
[347311380,1735679462100,-11200.39,0.000221,2]
[347311381,1735679462109,-855.15690627,0.00022128,8]
[347311382,1735679462119,-151.0,0.00022179,7]
[347311383,1735679462128,-1069.07296866,0.0002218,2]
[347311384,1735679462137,-674.34,0.00022191,3]
[347311385,1735679462146,-151.0,0.00022191,7]
[347311386,1735679462156,-500.0,0.00022191,3]
[347311387,1735679462165,-151.0,0.00022191,7]
[347311388,1735679462174,-555.78671408,0.00022191,3]
[347311389,1735679462183,-151.0,0.00022191,7]
[347311390,1735679462192,-555.25,0.00022191,3]